[Event "*** Titled Tuesday Blitz"]
[Site "Chess.com"]
[Date "2019.11.05"]
[Round "4"]
[White "TST2014"]
[Black "DrVitman"]
[Result "1/2-1/2"]
[WhiteElo "2528"]
[BlackElo "2709"]
[TimeControl "180+2"]
[EndTime "13:53:16 PST"]
[Termination "Game drawn by repetition"]

1. d4 {[%clk 0:03:01.9]} 1... Nf6 {[%clk 0:03:00.3]} 2. c4 {[%clk 0:03:02.4]}
2... c5 {[%clk 0:02:58]} 3. d5 {[%clk 0:03:02]} 3... b5 {[%clk 0:02:58.7]} 4.
cxb5 {[%clk 0:03:02.4]} 4... a6 {[%clk 0:02:59.7]} 5. bxa6 {[%clk 0:03:04.3]}
5... g6 {[%clk 0:02:59]} 6. a7 {[%clk 0:03:05.6]} 6... Rxa7 {[%clk 0:02:59]} 7.
Nc3 {[%clk 0:03:07.5]} 7... Ba6 {[%clk 0:02:57.1]} 8. e4 {[%clk 0:03:08.2]} 8...
Bxf1 {[%clk 0:02:57.6]} 9. Kxf1 {[%clk 0:03:10.1]} 9... d6 {[%clk 0:02:57.2]}
10. g3 {[%clk 0:03:11.1]} 10... Bg7 {[%clk 0:02:57.9]} 11. Kg2 {[%clk 0:03:13]}
11... O-O {[%clk 0:02:59]} 12. Nf3 {[%clk 0:03:13.4]} 12... Nbd7 {[%clk
0:02:57]} 13. a4 {[%clk 0:03:13.6]} 13... Qb6 {[%clk 0:02:56]} 14. Qe2 {[%clk
0:03:04.9]} 14... Qa6 {[%clk 0:02:45.4]} 15. Nb5 {[%clk 0:03:00.8]} 15... Rb8
{[%clk 0:02:41]} 16. Ra3 {[%clk 0:02:54.5]} 16... Rab7 {[%clk 0:02:22.6]} 17.
Re1 {[%clk 0:02:49.8]} 17... Ne8 {[%clk 0:02:06.4]} 18. Nd2 {[%clk 0:02:34.5]}
18... Nb6 {[%clk 0:01:43]} 19. b3 {[%clk 0:02:22.7]} 19... Na8 {[%clk
0:01:37.8]} 20. Nc4 {[%clk 0:02:19.5]} 20... Nac7 {[%clk 0:01:36]} 21. Nxc7
{[%clk 0:02:10.5]} 21... Nxc7 {[%clk 0:01:37.9]} 22. Qd3 {[%clk 0:02:03.8]}
22... Na8 {[%clk 0:01:30]} 23. h4 {[%clk 0:01:53.5]} 23... Nb6 {[%clk
0:01:29.4]} 24. h5 {[%clk 0:01:45.1]} 24... Nxc4 {[%clk 0:01:29.5]} 25. bxc4
{[%clk 0:01:46.2]} 25... Rb4 {[%clk 0:01:30.4]} 26. hxg6 {[%clk 0:01:39.8]}
26... hxg6 {[%clk 0:01:32.3]} 27. Bg5 {[%clk 0:01:41]} 27... R8b7 {[%clk
0:01:12.8]} 28. a5 {[%clk 0:01:35.5]} 28... Qxc4 {[%clk 0:01:06.8]} 29. Qxc4
{[%clk 0:01:31]} 29... Rxc4 {[%clk 0:01:08.7]} 30. a6 {[%clk 0:01:32.2]} 30...
Ra7 {[%clk 0:01:09.7]} 31. Bxe7 {[%clk 0:01:32.7]} 31... Bf8 {[%clk 0:00:57.3]}
32. Bd8 {[%clk 0:01:24.7]} 32... Rb4 {[%clk 0:00:53.1]} 33. e5 {[%clk 0:01:23]}
33... dxe5 {[%clk 0:00:51.2]} 34. Rxe5 {[%clk 0:01:24.9]} 34... Rb8 {[%clk
0:00:42.9]} 35. Re8 {[%clk 0:01:21.2]} 35... Rd7 {[%clk 0:00:18]} 36. a7 {[%clk
0:01:21.8]} 36... Ra8 {[%clk 0:00:19]} 37. Rb3 {[%clk 0:01:01.1]} 37... Rdxa7
{[%clk 0:00:14.9]} 38. d6 {[%clk 0:00:59]} 38... Rd7 {[%clk 0:00:13.8]} 39.
Rxf8+ {[%clk 0:00:52.5]} 39... Kxf8 {[%clk 0:00:13.8]} 40. Bc7 {[%clk
0:00:48.3]} 40... Rc8 {[%clk 0:00:13.7]} 41. Rb7 {[%clk 0:00:45.4]} 41... c4
{[%clk 0:00:13.9]} 42. Kf3 {[%clk 0:00:46.2]} 42... c3 {[%clk 0:00:13.8]} 43.
Rb1 {[%clk 0:00:37.9]} 43... Rdxc7 {[%clk 0:00:11.7]} 44. dxc7 {[%clk
0:00:38.6]} 44... Rxc7 {[%clk 0:00:13.6]} 45. Ke3 {[%clk 0:00:40]} 45... Ke7
{[%clk 0:00:13.6]} 46. Kd3 {[%clk 0:00:39.6]} 46... Kf6 {[%clk 0:00:14.5]} 47.
Rc1 {[%clk 0:00:39.2]} 47... Ke5 {[%clk 0:00:14.5]} 48. f3 {[%clk 0:00:37.8]}
48... Rd7+ {[%clk 0:00:15.8]} 49. Ke3 {[%clk 0:00:37.5]} 49... Rc7 {[%clk
0:00:14.2]} 50. Rc2 {[%clk 0:00:38]} 50... g5 {[%clk 0:00:14.3]} 51. Kd3 {[%clk
0:00:37.2]} 51... f5 {[%clk 0:00:12]} 52. Rxc3 {[%clk 0:00:38.2]} 52... Rxc3+
{[%clk 0:00:12.2]} 53. Kxc3 {[%clk 0:00:40.1]} 53... Kd5 {[%clk 0:00:09.9]} 54.
Kd3 {[%clk 0:00:41]} 54... Kc5 {[%clk 0:00:08.3]} 55. Kc3 {[%clk 0:00:41.9]}
55... Kd5 {[%clk 0:00:09.6]} 56. Kd3 {[%clk 0:00:43]} 56... Kc5 {[%clk 0:00:11]}
57. Kc3 {[%clk 0:00:40.9]} 57... Kd5 {[%clk 0:00:12.2]} 1/2-1/2

[Event "*** Titled Tuesday Blitz"]
[Site "Chess.com"]
[Date "2019.11.05"]
[Round "4"]
[White "Barcelona_Guy"]
[Black "TregubovP"]
[Result "1/2-1/2"]
[WhiteElo "2741"]
[BlackElo "2545"]
[TimeControl "180+2"]
[EndTime "13:53:21 PST"]
[Termination "Game drawn by agreement"]

1. d4 {[%clk 0:03:01.9]} 1... Nf6 {[%clk 0:03:00.4]} 2. c4 {[%clk 0:03:02.8]}
2... e6 {[%clk 0:03:01]} 3. Nf3 {[%clk 0:03:04]} 3... Bb4+ {[%clk 0:02:55.8]} 4.
Bd2 {[%clk 0:03:04.1]} 4... Qe7 {[%clk 0:02:55.3]} 5. g3 {[%clk 0:03:01.8]} 5...
Bxd2+ {[%clk 0:02:52.8]} 6. Qxd2 {[%clk 0:03:01.4]} 6... Nc6 {[%clk 0:02:53.9]}
7. a3 {[%clk 0:03:02.4]} 7... d6 {[%clk 0:02:46.2]} 8. Nc3 {[%clk 0:02:59.1]}
8... O-O {[%clk 0:02:46.4]} 9. Bg2 {[%clk 0:03:00.1]} 9... e5 {[%clk 0:02:47.1]}
10. O-O {[%clk 0:03:00.1]} 10... Bg4 {[%clk 0:02:44.3]} 11. dxe5 {[%clk
0:02:54.1]} 11... dxe5 {[%clk 0:02:44]} 12. h3 {[%clk 0:02:54.4]} 12... Bxf3
{[%clk 0:02:43.3]} 13. Bxf3 {[%clk 0:02:54.7]} 13... Rad8 {[%clk 0:02:31.1]} 14.
Qe3 {[%clk 0:02:51.8]} 14... Nd4 {[%clk 0:02:28]} 15. Rad1 {[%clk 0:02:50.2]}
15... c6 {[%clk 0:02:11.9]} 16. Bg2 {[%clk 0:02:44.8]} 16... Rfe8 {[%clk
0:02:08]} 17. b4 {[%clk 0:02:28.4]} 17... Qe6 {[%clk 0:02:06.2]} 18. c5 {[%clk
0:01:48.4]} 18... Qb3 {[%clk 0:02:06.6]} 19. Nb1 {[%clk 0:01:25.8]} 19... Qxe3
{[%clk 0:01:18.8]} 20. fxe3 {[%clk 0:01:26]} 20... Nb5 {[%clk 0:00:54.8]} 21. a4
{[%clk 0:01:19.7]} 21... Nc7 {[%clk 0:00:55.9]} 22. Nc3 {[%clk 0:01:10.8]} 22...
Kf8 {[%clk 0:00:43.6]} 23. b5 {[%clk 0:01:10.2]} 23... Ne6 {[%clk 0:00:35.5]}
24. bxc6 {[%clk 0:01:07.4]} 24... bxc6 {[%clk 0:00:35.4]} 25. Bxc6 {[%clk
0:01:08.1]} 25... Rxd1 {[%clk 0:00:36.3]} 26. Rxd1 {[%clk 0:00:57.4]} 26... Rc8
{[%clk 0:00:37.8]} 27. Bb7 {[%clk 0:00:52.8]} 27... Rxc5 {[%clk 0:00:37.9]} 28.
Nb5 {[%clk 0:00:54]} 28... a5 {[%clk 0:00:34.7]} 29. Ra1 {[%clk 0:00:21]} 29...
Rc4 {[%clk 0:00:33.6]} 30. Nd6 {[%clk 0:00:20]} 30... Rb4 {[%clk 0:00:34.1]} 31.
Bc6 {[%clk 0:00:21.3]} 31... g6 {[%clk 0:00:25]} 32. Bb5 {[%clk 0:00:21.2]}
32... Nc5 {[%clk 0:00:24.1]} 33. Nc4 {[%clk 0:00:17.8]} 33... Nd5 {[%clk
0:00:11.7]} 34. Nxe5 {[%clk 0:00:16.5]} 34... Nxe3 {[%clk 0:00:10.6]} 35. Nc6
{[%clk 0:00:17.4]} 35... Rb2 {[%clk 0:00:09.6]} 36. Nxa5 {[%clk 0:00:18.7]}
36... Ne4 {[%clk 0:00:08]} 37. g4 {[%clk 0:00:16.4]} 37... Nc3 {[%clk
0:00:08.9]} 38. Ra3 {[%clk 0:00:12.4]} 38... Nxb5 {[%clk 0:00:08.2]} 39. axb5
{[%clk 0:00:13.8]} 39... Rxb5 {[%clk 0:00:06.7]} 40. Rxe3 {[%clk 0:00:14.9]}
40... Rxa5 {[%clk 0:00:07.8]} 41. Kf2 {[%clk 0:00:16.5]} 41... Kg7 {[%clk
0:00:09.3]} 42. Rc3 {[%clk 0:00:16.6]} 42... h5 {[%clk 0:00:10.7]} 43. Kg3
{[%clk 0:00:12.7]} 43... hxg4 {[%clk 0:00:07.8]} 44. hxg4 {[%clk 0:00:13.5]}
44... Re5 {[%clk 0:00:08.8]} 45. e3 {[%clk 0:00:14.3]} 45... Ra5 {[%clk
0:00:09.3]} 46. Rd3 {[%clk 0:00:15.3]} 46... Kf6 {[%clk 0:00:10]} 47. Rb3 {[%clk
0:00:16.3]} 47... Kg5 {[%clk 0:00:09.4]} 48. Rc3 {[%clk 0:00:11.1]} 48... Re5
{[%clk 0:00:06.8]} 49. Rb3 {[%clk 0:00:11.9]} 49... f5 {[%clk 0:00:05.3]} 50.
gxf5 {[%clk 0:00:12.7]} 50... gxf5 {[%clk 0:00:05.5]} 51. Kf3 {[%clk 0:00:13]}
51... Re8 {[%clk 0:00:04.7]} 1/2-1/2

[Event "*** Titled Tuesday Blitz"]
[Site "Chess.com"]
[Date "2019.11.05"]
[Round "4"]
[White "Frolik67"]
[Black "DinaBelenkaya"]
[Result "0-1"]
[WhiteElo "2542"]
[BlackElo "2315"]
[TimeControl "180+2"]
[EndTime "13:53:28 PST"]
[Termination "DinaBelenkaya won by resignation"]

1. e4 {[%clk 0:03:01.9]} 1... d5 {[%clk 0:02:59.1]} 2. exd5 {[%clk 0:03:01.8]}
2... Qxd5 {[%clk 0:03:00.3]} 3. Nc3 {[%clk 0:03:02.6]} 3... Qa5 {[%clk
0:03:01.3]} 4. Bc4 {[%clk 0:03:03.1]} 4... c6 {[%clk 0:02:59.3]} 5. Nf3 {[%clk
0:03:03.7]} 5... Nf6 {[%clk 0:02:54.2]} 6. d4 {[%clk 0:03:02.5]} 6... Bf5 {[%clk
0:02:54.3]} 7. O-O {[%clk 0:03:02.2]} 7... e6 {[%clk 0:02:55.2]} 8. Re1 {[%clk
0:03:02.9]} 8... Be7 {[%clk 0:02:55.2]} 9. a3 {[%clk 0:03:03.9]} 9... O-O {[%clk
0:02:55.9]} 10. Bf4 {[%clk 0:03:03.7]} 10... Nbd7 {[%clk 0:02:56.2]} 11. h3
{[%clk 0:03:04.3]} 11... h6 {[%clk 0:02:45.7]} 12. Ne2 {[%clk 0:03:02.2]} 12...
b5 {[%clk 0:02:23.3]} 13. Bb3 {[%clk 0:03:02.4]} 13... Rfd8 {[%clk 0:02:14.6]}
14. Ng3 {[%clk 0:03:01]} 14... Bh7 {[%clk 0:02:10.6]} 15. c3 {[%clk 0:02:58.1]}
15... c5 {[%clk 0:02:10.9]} 16. Qe2 {[%clk 0:02:56]} 16... c4 {[%clk 0:02:01.9]}
17. Ba2 {[%clk 0:02:54.2]} 17... Nd5 {[%clk 0:02:01.7]} 18. Bd2 {[%clk 0:02:51]}
18... Bd3 {[%clk 0:02:00.7]} 19. Qd1 {[%clk 0:02:50.3]} 19... Bf6 {[%clk
0:01:54.4]} 20. Ne4 {[%clk 0:02:49.4]} 20... Qc7 {[%clk 0:01:43.6]} 21. g3
{[%clk 0:02:44.2]} 21... e5 {[%clk 0:01:40.1]} 22. Nxf6+ {[%clk 0:02:41.5]}
22... N5xf6 {[%clk 0:01:36.5]} 23. dxe5 {[%clk 0:02:40.6]} 23... Ne4 {[%clk
0:01:34.1]} 24. Bf4 {[%clk 0:02:39.4]} 24... g5 {[%clk 0:01:27.4]} 25. Be3
{[%clk 0:02:38.5]} 25... Nxe5 {[%clk 0:01:28.4]} 26. Nxe5 {[%clk 0:02:38.7]}
26... Qxe5 {[%clk 0:01:29.3]} 27. Qf3 {[%clk 0:02:39]} 27... Qf6 {[%clk
0:01:19.4]} 28. Qxf6 {[%clk 0:02:36.3]} 28... Nxf6 {[%clk 0:01:20.4]} 29. Bd4
{[%clk 0:02:38.2]} 29... Ne4 {[%clk 0:01:08]} 30. Bb1 {[%clk 0:02:38.4]} 30...
Bxb1 {[%clk 0:00:55]} 31. Rexb1 {[%clk 0:02:38.6]} 31... Rd5 {[%clk 0:00:46.8]}
32. Re1 {[%clk 0:02:35.2]} 32... f5 {[%clk 0:00:46.5]} 33. Kg2 {[%clk
0:02:31.4]} 33... Kf7 {[%clk 0:00:45.8]} 34. a4 {[%clk 0:02:29.6]} 34... a5
{[%clk 0:00:39.8]} 35. f3 {[%clk 0:02:19.5]} 35... Nd2 {[%clk 0:00:39.9]} 36.
Re2 {[%clk 0:02:11.4]} 36... Nb3 {[%clk 0:00:40.3]} 37. Rae1 {[%clk 0:02:13]}
37... Nxd4 {[%clk 0:00:36.6]} 38. Re7+ {[%clk 0:02:12.1]} 38... Kf8 {[%clk
0:00:36.3]} 39. cxd4 {[%clk 0:02:13.7]} 39... Rxd4 {[%clk 0:00:33.5]} 40. axb5
{[%clk 0:02:13.9]} 40... Rd2+ {[%clk 0:00:34]} 41. Kg1 {[%clk 0:02:15.2]} 41...
Rb8 {[%clk 0:00:21.3]} 42. Rc7 {[%clk 0:02:09]} 42... Rxb5 {[%clk 0:00:21.3]}
43. Rc8+ {[%clk 0:01:52.5]} 43... Kf7 {[%clk 0:00:21.6]} 44. Rc7+ {[%clk
0:01:53.8]} 44... Kg6 {[%clk 0:00:22.8]} 45. Re6+ {[%clk 0:01:23.9]} 45... Kh5
{[%clk 0:00:22.7]} 46. Rcc6 {[%clk 0:01:25.4]} 46... Rd1+ {[%clk 0:00:22]} 47.
Kf2 {[%clk 0:01:26.4]} 47... Rxb2+ {[%clk 0:00:23.1]} 48. Ke3 {[%clk 0:01:27.6]}
48... Re1+ {[%clk 0:00:24.4]} 49. Kd4 {[%clk 0:01:28.8]} 49... Rxe6 {[%clk
0:00:16.4]} 50. Rxe6 {[%clk 0:01:30.7]} 50... Rb3 {[%clk 0:00:14.4]} 51. g4+
{[%clk 0:01:25.5]} 51... fxg4 {[%clk 0:00:15.6]} 52. fxg4+ {[%clk 0:01:27]}
52... Kh4 {[%clk 0:00:17.2]} 53. Rxh6+ {[%clk 0:01:28.5]} 53... Kg3 {[%clk
0:00:18.3]} 54. Kxc4 {[%clk 0:01:28.4]} 54... Rb4+ {[%clk 0:00:15.9]} 55. Kc3
{[%clk 0:01:29.1]} 55... Rf4 {[%clk 0:00:13.8]} 56. Kb3 {[%clk 0:01:28.5]} 56...
Re4 {[%clk 0:00:11.2]} 57. Rh5 {[%clk 0:01:28.2]} 57... Re5 {[%clk 0:00:11.5]}
58. Ka4 {[%clk 0:01:29.7]} 58... Kf3 {[%clk 0:00:11.3]} 59. Rh8 {[%clk
0:01:28.1]} 59... Ke4 {[%clk 0:00:10.4]} 60. Rf8 {[%clk 0:01:28.6]} 60... Rd5
{[%clk 0:00:07.1]} 61. Re8+ {[%clk 0:01:27]} 61... Kf4 {[%clk 0:00:07.8]} 62.
Rf8+ {[%clk 0:01:28.3]} 62... Ke4 {[%clk 0:00:05.8]} 63. Rh8 {[%clk 0:01:29.7]}
63... Kf4 {[%clk 0:00:04.7]} 64. Rg8 {[%clk 0:01:28.1]} 64... Rd3 {[%clk
0:00:03.7]} 65. Rf8+ {[%clk 0:01:29.4]} 65... Kg3 {[%clk 0:00:03.3]} 66. Rh8
{[%clk 0:01:28.1]} 66... Kg2 {[%clk 0:00:03.2]} 67. h4 {[%clk 0:01:29.3]} 67...
gxh4 {[%clk 0:00:02.5]} 68. g5 {[%clk 0:01:31.2]} 68... Rd4+ {[%clk 0:00:03.5]}
69. Kb3 {[%clk 0:01:31.6]} 69... h3 {[%clk 0:00:04.8]} 70. g6 {[%clk 0:01:33.1]}
70... Rg4 {[%clk 0:00:05.8]} 71. g7 {[%clk 0:01:28.3]} 71... Rxg7 {[%clk
0:00:05.8]} 72. Ka4 {[%clk 0:01:30.2]} 72... Rg5 {[%clk 0:00:06.8]} 0-1

[Event "*** Titled Tuesday Blitz"]
[Site "Chess.com"]
[Date "2019.11.05"]
[Round "4"]
[White "StoreySniper"]
[Black "Vasily85"]
[Result "0-1"]
[WhiteElo "2281"]
[BlackElo "2211"]
[TimeControl "180+2"]
[EndTime "13:53:28 PST"]
[Termination "Vasily85 won by resignation"]

1. e4 {[%clk 0:03:01.9]} 1... c5 {[%clk 0:03:00.7]} 2. c3 {[%clk 0:03:00.9]}
2... Nf6 {[%clk 0:03:00]} 3. e5 {[%clk 0:03:01.6]} 3... Nd5 {[%clk 0:03:01.5]}
4. d4 {[%clk 0:03:02.7]} 4... cxd4 {[%clk 0:03:02.6]} 5. Qxd4 {[%clk 0:03:00.9]}
5... Nc7 {[%clk 0:02:59.8]} 6. Nf3 {[%clk 0:03:00.6]} 6... Nc6 {[%clk
0:03:00.9]} 7. Qa4 {[%clk 0:03:01.5]} 7... g6 {[%clk 0:02:54.2]} 8. Bf4 {[%clk
0:02:45.8]} 8... Bg7 {[%clk 0:02:55]} 9. Nbd2 {[%clk 0:02:43.6]} 9... b5 {[%clk
0:02:18.7]} 10. Bxb5 {[%clk 0:02:29.4]} 10... Nxb5 {[%clk 0:02:19.1]} 11. Qxb5
{[%clk 0:02:30.4]} 11... Rb8 {[%clk 0:02:20.5]} 12. Qe2 {[%clk 0:02:26.6]} 12...
Rxb2 {[%clk 0:02:20.8]} 13. O-O {[%clk 0:02:27.5]} 13... O-O {[%clk 0:02:20.9]}
14. Rfb1 {[%clk 0:02:27.8]} 14... Rxb1+ {[%clk 0:02:03]} 15. Rxb1 {[%clk
0:02:09.6]} 15... Qa5 {[%clk 0:02:04.9]} 16. Ne4 {[%clk 0:01:56]} 16... Ba6
{[%clk 0:02:02.5]} 17. Qd2 {[%clk 0:01:52.4]} 17... Nxe5 {[%clk 0:01:57.9]} 18.
Nxe5 {[%clk 0:01:46.2]} 18... Bxe5 {[%clk 0:01:59.8]} 19. Bh6 {[%clk 0:01:39.6]}
19... Rd8 {[%clk 0:01:54.8]} 20. Qg5 {[%clk 0:01:29.7]} 20... Bd3 {[%clk
0:01:43.7]} 21. Re1 {[%clk 0:01:24.6]} 21... Bxe4 {[%clk 0:01:27.9]} 22. Rxe4
{[%clk 0:01:23.9]} 22... f6 {[%clk 0:00:54.8]} 23. Qe3 {[%clk 0:01:13]} 23... d5
{[%clk 0:00:52.7]} 24. Rxe5 {[%clk 0:01:12.2]} 24... fxe5 {[%clk 0:00:49.4]} 25.
Qxe5 {[%clk 0:01:12.7]} 25... Kf7 {[%clk 0:00:51.3]} 26. Qg7+ {[%clk 0:01:04.5]}
26... Ke8 {[%clk 0:00:43.5]} 27. Qxh7 {[%clk 0:01:04.3]} 27... Qxc3 {[%clk
0:00:39]} 28. Qxg6+ {[%clk 0:01:04.9]} 28... Kd7 {[%clk 0:00:40.4]} 29. Qf5+
{[%clk 0:00:55.7]} 29... e6 {[%clk 0:00:39.4]} 30. Qf7+ {[%clk 0:00:54]} 30...
Kc6 {[%clk 0:00:23.2]} 31. Qxe6+ {[%clk 0:00:53.2]} 31... Kb5 {[%clk 0:00:23.8]}
32. Qe2+ {[%clk 0:00:48.9]} 32... Qc4 {[%clk 0:00:21.2]} 33. Qb2+ {[%clk
0:00:47.8]} 33... Kc6 {[%clk 0:00:19.1]} 34. Bg5 {[%clk 0:00:36.2]} 34... Re8
{[%clk 0:00:15.5]} 35. h4 {[%clk 0:00:35.2]} 35... d4 {[%clk 0:00:14.3]} 36. Bd2
{[%clk 0:00:29.9]} 36... Re2 {[%clk 0:00:15.2]} 37. h5 {[%clk 0:00:15.3]} 37...
d3 {[%clk 0:00:15.1]} 38. h6 {[%clk 0:00:15.9]} 38... Qc2 {[%clk 0:00:10.9]} 39.
Qf6+ {[%clk 0:00:16.6]} 39... Kb5 {[%clk 0:00:11.2]} 40. Qf5+ {[%clk 0:00:16.2]}
40... Kc6 {[%clk 0:00:12.3]} 41. Qf6+ {[%clk 0:00:15.5]} 41... Kd5 {[%clk
0:00:13.6]} 42. Qf5+ {[%clk 0:00:16]} 42... Kc6 {[%clk 0:00:14.2]} 43. h7 {[%clk
0:00:12.6]} 43... Qb1+ {[%clk 0:00:06.5]} 44. Kh2 {[%clk 0:00:13.1]} 44... Qb8+
{[%clk 0:00:06.7]} 45. Bf4 {[%clk 0:00:12.9]} 45... Qh8 {[%clk 0:00:07.3]} 46.
Qxd3 {[%clk 0:00:11.1]} 46... Re7 {[%clk 0:00:08.3]} 47. Qc4+ {[%clk 0:00:11.4]}
47... Kd7 {[%clk 0:00:08.9]} 48. Qb5+ {[%clk 0:00:12.2]} 48... Ke6 {[%clk
0:00:09.1]} 49. Qe5+ {[%clk 0:00:11.4]} 49... Qxe5 {[%clk 0:00:09.9]} 50. Bxe5
{[%clk 0:00:12.5]} 50... Rxh7+ {[%clk 0:00:11.8]} 51. Kg3 {[%clk 0:00:13]} 51...
Kxe5 {[%clk 0:00:13.7]} 52. f4+ {[%clk 0:00:14.3]} 52... Kf5 {[%clk 0:00:14.6]}
53. Kf3 {[%clk 0:00:15.5]} 53... Rg7 {[%clk 0:00:15.9]} 54. g3 {[%clk
0:00:16.6]} 54... Rg4 {[%clk 0:00:16.4]} 55. a4 {[%clk 0:00:17.7]} 55... a5
{[%clk 0:00:17.7]} 56. Kf2 {[%clk 0:00:18.2]} 56... Ke4 {[%clk 0:00:19]} 57. Kg2
{[%clk 0:00:18.7]} 57... Rg8 {[%clk 0:00:18.2]} 0-1

[Event "*** Titled Tuesday Blitz"]
[Site "Chess.com"]
[Date "2019.11.05"]
[Round "4"]
[White "Sajkochess"]
[Black "catalin009"]
[Result "0-1"]
[WhiteElo "2331"]
[BlackElo "2553"]
[TimeControl "180+2"]
[EndTime "13:53:31 PST"]
[Termination "catalin009 won on time"]

1. e4 {[%clk 0:03:01.9]} 1... e5 {[%clk 0:02:59.4]} 2. Nf3 {[%clk 0:03:02.3]}
2... Nc6 {[%clk 0:03:00.1]} 3. Bb5 {[%clk 0:03:03.7]} 3... a6 {[%clk 0:02:59.6]}
4. Ba4 {[%clk 0:03:04.7]} 4... d6 {[%clk 0:03:00.6]} 5. c3 {[%clk 0:03:02.7]}
5... g6 {[%clk 0:02:48.7]} 6. d4 {[%clk 0:03:01.2]} 6... Bd7 {[%clk 0:02:48.9]}
7. O-O {[%clk 0:03:00.5]} 7... Bg7 {[%clk 0:02:48.4]} 8. dxe5 {[%clk 0:02:58.1]}
8... Nxe5 {[%clk 0:02:46.6]} 9. Nxe5 {[%clk 0:02:56.2]} 9... dxe5 {[%clk
0:02:43.8]} 10. Bg5 {[%clk 0:02:45.2]} 10... Ne7 {[%clk 0:02:29.3]} 11. Qxd7+
{[%clk 0:02:27.6]} 11... Qxd7 {[%clk 0:02:30.1]} 12. Bxd7+ {[%clk 0:02:28.2]}
12... Kxd7 {[%clk 0:02:32]} 13. Rd1+ {[%clk 0:02:29.6]} 13... Ke6 {[%clk
0:02:32]} 14. Bxe7 {[%clk 0:02:29.8]} 14... Kxe7 {[%clk 0:02:32.8]} 15. Na3
{[%clk 0:02:26.4]} 15... Rhd8 {[%clk 0:02:26.3]} 16. Nc4 {[%clk 0:02:24.2]}
16... b6 {[%clk 0:01:56.1]} 17. Kf1 {[%clk 0:02:17.2]} 17... Ke6 {[%clk
0:01:56.2]} 18. Ke2 {[%clk 0:02:17.2]} 18... Bh6 {[%clk 0:01:54.8]} 19. Rxd8
{[%clk 0:02:03]} 19... Rxd8 {[%clk 0:01:53.9]} 20. Rd1 {[%clk 0:02:04.4]} 20...
Rxd1 {[%clk 0:01:52.1]} 21. Kxd1 {[%clk 0:02:06.3]} 21... b5 {[%clk 0:01:46.5]}
22. Na5 {[%clk 0:02:05.7]} 22... Bf8 {[%clk 0:01:37.4]} 23. Ke2 {[%clk
0:01:48.8]} 23... Bc5 {[%clk 0:01:35]} 24. f3 {[%clk 0:01:47.3]} 24... Bg1
{[%clk 0:01:33.5]} 25. h3 {[%clk 0:01:47.2]} 25... Bb6 {[%clk 0:01:28.2]} 26.
Nc6 {[%clk 0:01:44.2]} 26... a5 {[%clk 0:01:10.2]} 27. b4 {[%clk 0:01:07.8]}
27... a4 {[%clk 0:00:29.7]} 28. Kd3 {[%clk 0:00:34.1]} 28... Kd6 {[%clk
0:00:29.1]} 29. Nd8 {[%clk 0:00:31.2]} 29... f6 {[%clk 0:00:22.9]} 30. Nf7+
{[%clk 0:00:30.5]} 30... Ke6 {[%clk 0:00:17.5]} 31. Nh6 {[%clk 0:00:31]} 31...
c5 {[%clk 0:00:09.8]} 32. bxc5 {[%clk 0:00:20.2]} 32... Bxc5 {[%clk 0:00:11.7]}
33. Ng4 {[%clk 0:00:19.2]} 33... h5 {[%clk 0:00:05.9]} 34. Nh2 {[%clk
0:00:19.9]} 34... Kd6 {[%clk 0:00:06.5]} 35. Nf1 {[%clk 0:00:20.7]} 35... Bf2
{[%clk 0:00:06.7]} 36. Nd2 {[%clk 0:00:20.8]} 36... Kc5 {[%clk 0:00:07.6]} 37.
Nb1 {[%clk 0:00:14.7]} 37... Be1 {[%clk 0:00:05.2]} 38. g4 {[%clk 0:00:14.7]}
38... Bg3 {[%clk 0:00:05.5]} 39. Na3 {[%clk 0:00:11]} 39... Bf4 {[%clk
0:00:05.9]} 40. Nc2 {[%clk 0:00:11.5]} 40... Bc1 {[%clk 0:00:05.3]} 41. Nb4
{[%clk 0:00:10.2]} 41... Bg5 {[%clk 0:00:04.6]} 42. Nd5 {[%clk 0:00:09.1]} 42...
Bh4 {[%clk 0:00:04.8]} 43. gxh5 {[%clk 0:00:08.8]} 43... gxh5 {[%clk 0:00:05.8]}
44. Ne7 {[%clk 0:00:09.2]} 44... Bg3 {[%clk 0:00:05.7]} 45. Nd5 {[%clk
0:00:07.1]} 45... Bh4 {[%clk 0:00:06]} 46. Kc2 {[%clk 0:00:04.7]} 46... Bg5
{[%clk 0:00:04.9]} 47. Kd3 {[%clk 0:00:02.9]} 47... f5 {[%clk 0:00:06.3]} 48.
exf5 {[%clk 0:00:03.7]} 48... Kxd5 {[%clk 0:00:07.3]} 0-1